bitfinex/quotes_SOLUSD_20220307
["timestamp","ask_amount","ask_price","bid_price","bid_amount"]
[1646658630261,1.6116685,84.359,84.332,118.6]
[1646658630463,1.61154671,84.366,84.335,0.14436997]
[1646658630657,1.61139769,84.373,84.336,35.48612571]
[1646658630858,6.46182177,84.393,84.337,6.25]
[1646658631058,5.926,84.397,84.338,0.14436997]
[1646658631458,6.45936368,84.396,84.337,6.25]
[1646658631658,6.45936368,84.396,84.337,29.3627]
[1646658631858,6.45936368,84.397,84.34,17.7838]
[1646658632060,23.1368,84.398,84.341,6.25]
[1646658632358,23.1368,84.398,84.342,6.25]
[1646658632558,3.21425007,84.41,84.339,0.15485545]
[1646658632763,3.21425007,84.421,84.341,0.1700195]
[1646658632958,0.25,84.42,84.352,0.1700195]
[1646658633161,6.70828608,84.42,84.353,118.6]
[1646658633358,0.25,84.42,84.354,6.25]
[1646658633558,6.45828608,84.419,84.355,37.60070317]
[1646658633760,6.45828608,84.419,84.356,6.25]
[1646658633960,5.925,84.425,84.36,17.7811]
[1646658634162,5.924,84.429,84.361,6.25]
[1646658634361,5.924,84.433,84.362,6.25]
[1646658634563,40.31508028,84.433,84.356,6.25]
[1646658634762,43.52933035,84.433,84.356,6.25]
[1646658634962,3.21425007,84.434,84.37,17.7783]
[1646658635168,3.21425007,84.434,84.371,6.25]
[1646658635466,23.4237,84.449,84.371,6.25]
[1646658635467,3.21425007,84.439,84.371,6.25]
[1646658635663,5.924,84.438,84.371,6.25]
[1646658635865,5.924,84.447,84.38,17.7766]
[1646658636164,5.924,84.447,84.382,41.92315643]
[1646658636464,30.38870572,84.446,84.383,28.9838]
[1646658636664,23.9317,84.446,84.383,28.9838]
[1646658637266,23.9317,84.446,84.39,17.774]
[1646658637563,0.25,84.446,84.392,118.6]
[1646658637764,6.0,84.448,84.394,118.6]
[1646658637967,23.4237,84.449,84.395,6.25]
[1646658638167,23.4237,84.449,84.395,15.57]
[1646658638766,23.4237,84.449,84.4,17.7716]
[1646658638966,23.4237,84.449,84.402,44.74492499]
[1646658639165,23.4237,84.449,84.403,6.25]
[1646658639364,3.21425007,84.487,84.403,6.25]
[1646658639365,5.922,84.479,84.404,118.6]
[1646658639565,5.922,84.479,84.406,118.78503202]
[1646658639769,5.921,84.498,84.412,0.20053592]
[1646658639965,3.21425007,84.5,84.412,0.20053592]
[1646658639966,6.45421969,84.497,84.413,118.6]
[1646658640165,6.45421969,84.498,84.416,43.58438215]
[1646658640364,5.92,84.497,84.418,118.6]
[1646658640569,5.92,84.497,84.419,30.2226]
[1646658640769,0.25,84.496,84.43,17.7644]
[1646658640967,5.918,84.495,84.432,48.5159362]
[1646658641169,0.25,84.494,84.433,6.25]
[1646658641368,5.918,84.496,84.433,6.25]
[1646658641568,5.918,84.498,84.433,6.25]
[1646658643370,0.25,84.497,84.433,6.25]
[1646658643568,5.918,84.496,84.433,6.25]
[1646658643768,0.25,84.495,84.433,6.25]
[1646658643971,17.7681,84.49,84.433,6.25]
[1646658644170,0.25,84.489,84.433,6.25]
[1646658645171,5.918,84.502,84.433,6.25]
[1646658645372,0.25,84.501,84.434,22.6651]
[1646658645571,0.25,84.501,84.435,6.25]
[1646658646373,0.25,84.502,84.435,6.25]
[1646658646574,0.25,84.502,84.436,5.919]
[1646658646772,0.25,84.502,84.437,6.25]
[1646658646973,0.25,84.502,84.438,5.918]
[1646658647173,0.25,84.502,84.439,6.25]
[1646658647374,17.7659,84.5,84.44,5.918]
[1646658647574,0.25,84.499,84.441,6.25]
[1646658647779,0.25,84.502,84.442,5.918]
[1646658648080,0.25,84.502,84.443,6.25]
[1646658648277,0.25,84.502,84.444,5.918]
[1646658648478,0.25,84.502,84.445,42.15516989]
[1646658648676,0.25,84.502,84.446,5.918]
[1646658648876,0.25,84.502,84.447,6.25]
[1646658649078,5.918,84.501,84.448,5.918]
[1646658649279,0.25,84.5,84.449,6.25]
[1646658649879,0.25,84.5,84.449,0.25]
[1646658650280,155.96680841,84.499,84.449,0.25]
[1646658650479,0.25,84.498,84.447,0.25]
[1646658650680,5.918,84.497,84.447,0.25]
[1646658650879,5.918,84.497,84.446,0.25]
[1646658650880,0.25,84.496,84.446,0.25]
[1646658651279,0.25,84.496,84.446,6.25]
[1646658651884,5.918,84.502,84.446,6.25]
[1646658652282,39.56491797,84.511,84.447,5.918]
[1646658652481,5.918,84.51,84.448,6.25]
[1646658652686,5.918,84.518,84.449,5.918]
[1646658652881,5.918,84.518,84.45,6.25]
[1646658653080,17.7635,84.51,84.45,6.25]
[1646658653280,0.25,84.502,84.45,6.25]
[1646658653484,0.25,84.502,84.45,0.25]
[1646658654483,0.25,84.502,84.45,6.168]
[1646658654683,17.7659,84.5,84.451,6.0]
[1646658654884,0.25,84.499,84.452,0.25]
[1646658655084,48.7136,84.503,84.452,0.25]
[1646658655284,0.25,84.502,84.452,0.25]
[1646658655785,17.7659,84.5,84.452,0.25]
[1646658655985,17.7659,84.5,84.449,6.0]
[1646658655986,17.7659,84.5,84.45,6.168]
[1646658656287,17.7659,84.5,84.451,6.0]
[1646658656484,17.7659,84.5,84.452,0.25]
[1646658657385,0.25,84.499,84.452,0.25]
[1646658657584,0.25,84.499,84.449,6.25]
[1646658660286,0.25,84.499,84.448,5.918]
[1646658660287,154.74592991,84.489,84.448,5.918]
[1646658660586,0.18351837,84.487,84.445,35.90516989]
[1646658661188,0.18351837,84.487,84.407,22.5848]
[1646658661391,0.18351837,84.487,84.408,6.0]
[1646658661589,0.18351837,84.485,84.408,6.0]
[1646658661889,0.18351837,84.483,84.408,6.0]
[1646658662089,17.7708,84.48,84.41,17.7688]
[1646658662288,0.25,84.479,84.411,6.0]
[1646658662890,0.25,84.479,84.412,0.25]
[1646658663089,0.25,84.479,84.411,0.25]
[1646658663317,0.25,84.487,84.42,17.768]
[1646658663517,6.45370958,84.486,84.422,37.22408596]
[1646658663717,0.25,84.485,84.423,6.25]
[1646658664520,17.7702,84.48,84.423,6.25]
[1646658664718,40.25923565,84.479,84.423,0.25]
[1646658664918,164.77923565,84.479,84.422,37.22408596]
[1646658665120,0.13866313,84.478,84.422,37.22408596]
[1646658665319,5.92,84.477,84.422,37.22408596]
[1646658665521,17.7754,84.47,84.422,37.22408596]
[1646658665721,0.25,84.469,84.422,37.22408596]
[1646658665919,6.45523509,84.468,84.422,37.22408596]
[1646658666118,0.25,84.467,84.422,37.22408596]
[1646658666320,0.25,84.467,84.423,0.25]
[1646658667122,6.45511583,84.466,84.423,0.25]
[1646658667321,0.25,84.465,84.423,0.25]
[1646658668221,0.25,84.469,84.423,0.25]
[1646658668422,6.4552255,84.468,84.423,0.25]
[1646658668722,17.7741,84.46,84.423,0.25]
[1646658668921,36.03084701,84.459,84.423,0.25]
[1646658669123,6.4552255,84.458,84.423,0.25]
[1646658669322,0.25,84.457,84.423,0.25]
[1646658670324,0.25,84.463,84.423,0.25]
[1646658670523,6.45650031,84.462,84.423,0.25]
[1646658670723,0.25,84.461,84.423,0.25]
[1646658670924,6.45650031,84.46,84.423,0.25]
[1646658671125,0.25,84.459,84.391,24.2236]
[1646658671327,9.67075038,84.458,84.392,6.25]
[1646658671530,0.25,84.457,84.392,6.25]
[1646658671931,6.45650031,84.456,84.392,6.25]
[1646658672129,0.25,84.457,84.4,17.7744]
[1646658672328,0.25,84.457,84.401,6.25]
[1646658672830,17.7722,84.47,84.401,0.25]
[1646658672831,0.25,84.469,84.401,0.25]
[1646658673230,6.45603586,84.468,84.41,17.7718]
[1646658673429,6.171,84.467,84.411,40.15101783]
[1646658673630,17.7744,84.46,84.411,40.15101783]
[1646658673831,0.25,84.459,84.411,40.15101783]
[1646658674829,0.25,84.469,84.411,40.15101783]
[1646658675029,6.45623369,84.468,84.411,40.15101783]
[1646658675231,0.25,84.467,84.412,6.0]
[1646658675430,0.25,84.467,84.413,0.25]
[1646658675929,6.45551932,84.466,84.413,0.25]
[1646658676130,25.2411,84.465,84.413,0.25]
[1646658676330,0.25,84.464,84.413,0.25]
[1646658676532,0.25,84.464,84.412,0.25]
[1646658677132,24.9911,84.465,84.412,0.25]
[1646658677333,24.9911,84.465,84.412,6.25]
[1646658677832,24.9911,84.465,84.42,17.7705]
[1646658678032,24.9911,84.465,84.421,0.25]
[1646658678231,24.9911,84.465,84.422,5.921]
[1646658678431,24.9911,84.465,84.423,0.25]
[1646658678631,24.9911,84.465,84.425,47.53640046]
[1646658678832,24.9911,84.465,84.426,6.171]
[1646658679833,24.9911,84.465,84.427,6.0]
[1646658680031,24.9911,84.465,84.428,6.17]
[1646658680233,24.9911,84.465,84.429,6.0]
[1646658680433,24.9911,84.465,84.43,0.25]
[1646658680633,24.9911,84.465,84.428,0.25]
[1646658681632,24.9911,84.465,84.426,0.25]
[1646658683835,24.9911,84.465,84.427,5.92]
[1646658684037,24.9911,84.465,84.428,0.25]
[1646658684235,24.9911,84.465,84.429,5.92]
[1646658684439,24.9911,84.465,84.43,0.25]
[1646658684638,24.9911,84.465,84.431,5.92]
[1646658685237,6.45574844,84.464,84.431,5.92]
[1646658685437,24.9911,84.465,84.431,5.92]
[1646658688142,3.21425007,84.472,84.431,5.92]
[1646658688342,3.21425007,84.472,84.44,17.7662]
[1646658688541,6.45396115,84.479,84.441,12.17]
[1646658688742,3.21425007,84.488,84.442,6.25]
[1646658688942,3.21425007,84.491,84.443,5.918]
[1646658689143,3.21425007,84.491,84.445,44.27989322]
[1646658689342,3.21425007,84.491,84.446,12.168]
[1646658689543,3.21425007,84.49,84.446,12.168]
[1646658689943,9.66821122,84.489,84.446,12.168]
[1646658690144,3.21425007,84.491,84.446,12.168]
[1646658690443,6.45396115,84.493,84.45,17.7641]
[1646658690643,31.20246115,84.502,84.451,12.168]
[1646658690844,31.20246115,84.502,84.452,6.25]
[1646658690845,6.45396115,84.501,84.452,6.25]
[1646658691043,24.7485,84.502,84.453,5.918]
[1646658691245,24.7485,84.502,84.454,6.25]
[1646658691445,3.21425007,84.509,84.455,5.918]
[1646658691744,6.45195368,84.508,84.456,6.25]
[1646658691948,3.21425007,84.512,84.456,6.25]
[1646658692149,3.21425007,84.513,84.46,17.7585]
[1646658692347,5.918,84.512,84.461,65.2886431]
[1646658692546,20.97595007,84.52,84.461,65.2886431]
[1646658692547,5.918,84.518,84.461,65.2886431]
[1646658692746,6.4513385,84.517,84.461,65.2886431]
[1646658692950,6.4513385,84.517,84.462,5.917]
[1646658693147,24.7485,84.524,84.463,6.25]
[1646658693349,6.0,84.523,84.464,5.917]
[1646658693549,6.0,84.523,84.465,6.25]
[1646658693749,6.0,84.523,84.466,5.917]
[1646658693952,6.0,84.523,84.467,6.25]
[1646658694151,6.0,84.523,84.47,17.7596]
[1646658694352,6.0,84.523,84.471,6.25]
[1646658694552,0.25,84.522,84.471,6.25]
[1646658696967,6.0,84.523,84.471,6.25]
[1646658696968,6.0,84.523,84.481,34.53924219]
[1646658697270,24.7485,84.524,84.482,6.25]
[1646658698668,24.7485,84.524,84.483,5.916]
[1646658698869,24.7485,84.524,84.484,0.25]
[1646658699070,24.7485,84.524,84.485,5.916]
[1646658699270,24.7485,84.524,84.486,0.25]
[1646658699671,0.25,84.523,84.483,5.916]
[1646658699872,0.25,84.523,84.482,6.0]
[1646658700071,0.25,84.523,84.463,6.0]
[1646658700272,17.7614,84.52,84.464,0.25]
[1646658700972,17.7614,84.52,84.464,48.57573719]
[1646658701271,17.7614,84.52,84.465,6.0]
[1646658701471,17.7614,84.52,84.466,0.25]
[1646658702974,118.6,84.509,84.465,6.0]
[1646658703175,0.25,84.508,84.464,48.32573719]
[1646658703574,0.25,84.508,84.465,6.0]
[1646658704476,0.25,84.509,84.465,6.0]
[1646658705078,0.25,84.516,84.465,6.0]
[1646658705276,5.917,84.515,84.465,6.0]
[1646658705477,22.7836,84.514,84.465,6.0]
[1646658705777,5.917,84.513,84.465,6.0]
[1646658705980,17.7656,84.5,84.465,6.0]
[1646658706180,35.57616688,84.499,84.465,6.0]
[1646658706579,17.7656,84.5,84.465,6.0]
[1646658707781,37.1104963,84.499,84.465,6.0]
[1646658709385,17.7639,84.51,84.465,6.0]
[1646658709584,22.7836,84.514,84.466,0.25]
[1646658709784,22.7836,84.514,84.47,17.7601]
[1646658709984,22.7836,84.514,84.471,6.0]
[1646658710187,22.5336,84.514,84.471,6.0]
[1646658710585,22.5336,84.514,84.468,6.0]
[1646658710784,22.5336,84.514,84.469,0.25]
[1646658712185,5.917,84.513,84.469,0.25]
[1646658712487,6.167,84.513,84.467,0.25]
[1646658712689,6.167,84.513,84.466,0.25]
[1646658713084,17.7635,84.51,84.466,0.25]
[1646658713685,39.22813717,84.509,84.466,0.25]
[1646658718190,5.918,84.508,84.466,0.25]
[1646658718791,22.5336,84.514,84.47,17.7598]
[1646658718992,4.74795922,84.54,84.471,6.25]
[1646658719192,24.344,84.538,84.473,0.18428365]
[1646658719391,24.344,84.538,84.473,0.43428365]
[1646658719591,24.344,84.538,84.473,0.25]
[1646658719993,24.344,84.538,84.48,17.7554]
[1646658720194,24.344,84.538,84.481,6.25]
[1646658720895,6.0,84.537,84.482,6.0]
[1646658721198,6.0,84.537,84.483,39.34988881]
[1646658721393,6.0,84.537,84.484,6.0]
[1646658721592,6.0,84.537,84.485,0.25]
[1646658722997,17.7598,84.53,84.484,6.0]
[1646658723396,5.916,84.536,84.484,6.0]
[1646658723595,0.25,84.535,84.473,6.0]
[1646658723801,5.917,84.526,84.43,17.15]
[1646658724001,5.917,84.526,84.42,17.15]
[1646658724002,136.3618,84.52,84.42,17.15]
[1646658724198,118.6,84.518,84.452,22.8958]
[1646658724398,0.1038671,84.515,84.452,22.8958]
[1646658724598,124.518,84.514,84.453,39.62090994]
[1646658724798,0.25,84.513,84.453,39.62090994]
[1646658724997,5.918,84.512,84.453,39.62090994]
[1646658725198,118.6,84.51,84.454,0.25]
[1646658725398,0.25,84.513,84.454,0.25]
[1646658725805,0.25,84.514,84.454,6.25]
[1646658727605,0.25,84.514,84.454,0.25]
[1646658727804,0.25,84.514,84.454,6.25]
[1646658728207,0.25,84.514,84.46,17.7619]
[1646658728405,0.25,84.514,84.461,0.25]
[1646658729405,0.25,84.514,84.461,6.25]
[1646658729809,0.2,84.527,84.47,17.7596]
[1646658730009,0.2,84.527,84.471,45.68147035]
[1646658730207,0.2,84.527,84.472,6.0]
[1646658730510,0.2,84.527,84.473,0.25]
[1646658730927,0.2,84.527,84.48,17.7554]
[1646658731127,0.2,84.527,84.481,6.25]
[1646658731925,0.2,84.527,84.481,0.25]
[1646658732327,0.2,84.527,84.491,36.9617472]
[1646658732528,0.2,84.527,84.492,0.25]
[1646658741439,0.2,84.527,84.5,17.7521]
[1646658741737,0.2,84.527,84.501,6.25]
[1646658742538,0.2,84.527,84.51,17.7509]
[1646658742738,0.2,84.527,84.511,0.25]
[1646658743138,0.2,84.527,84.511,6.25]
[1646658743337,0.2,84.527,84.512,6.0]
[1646658743538,0.2,84.527,84.513,0.25]
[1646658743743,0.2,84.527,84.511,6.25]
[1646658744542,0.2,84.527,84.512,47.9510859]
[1646658744741,3.21425007,84.584,84.514,0.21784501]
[1646658744943,23.1321,84.596,84.52,17.7479]
[1646658744944,3.21425007,84.588,84.52,17.7479]
[1646658745143,9.12825007,84.587,84.522,0.21784501]
[1646658745541,5.914,84.587,84.522,0.21784501]
[1646658745741,5.913,84.589,84.522,6.21784501]
[1646658745943,22.6298,84.586,84.523,0.25]
[1646658746143,22.6298,84.586,84.521,0.25]
[1646658746348,37.37673355,84.58,84.521,6.25]
[1646658746543,5.914,84.579,84.521,6.25]
[1646658746742,17.7508,84.57,84.521,0.25]
[1646658747143,5.914,84.579,84.521,0.25]
[1646658747341,5.914,84.579,84.521,6.25]
[1646658749243,17.7524,84.57,84.522,6.0]
[1646658749465,37.37673355,84.58,84.523,0.25]
[1646658749643,37.37673355,84.58,84.521,0.25]
[1646658750344,37.37673355,84.58,84.521,6.25]
[1646658750745,37.37673355,84.58,84.521,0.25]
[1646658750945,6.0,84.579,84.515,0.25]
[1646658751145,7.60145582,84.579,84.515,0.25]
[1646658751547,6.0,84.579,84.531,37.4948948]
[1646658751744,6.0,84.579,84.532,6.25]
[1646658753952,11.913,84.579,84.532,6.25]
[1646658755048,13.51445582,84.579,84.532,0.25]
[1646658755249,13.51445582,84.579,84.521,6.25]
[1646658755448,6.0,84.579,84.521,6.25]
[1646658755648,6.0,84.579,84.522,44.15656694]
[1646658755849,6.0,84.579,84.523,6.25]
[1646658756448,6.0,84.579,84.53,17.7465]
[1646658756650,7.60145582,84.579,84.531,6.25]
[1646658756851,6.0,84.579,84.531,6.25]
[1646658757050,5.913,84.578,84.531,6.25]
[1646658757250,1.60145582,84.59,84.532,6.0]
[1646658757450,1.60145582,84.595,84.54,17.7438]
[1646658757650,1.60145582,84.602,84.541,6.25]
[1646658757848,1.60145582,84.603,84.542,118.6]
[1646658758049,47.56689601,84.606,84.543,6.25]
[1646658758249,1.60145582,84.607,84.543,6.25]
[1646658758448,1.60145582,84.607,84.544,22.5698]
[1646658758649,1.60145582,84.607,84.545,6.25]
[1646658758849,26.10785582,84.608,84.545,6.25]
[1646658759049,1.60145582,84.607,84.545,6.25]
[1646658759256,1.60145582,84.607,84.55,17.7396]
[1646658759449,1.60145582,84.608,84.553,0.26860981]
[1646658759653,1.60145582,84.612,84.553,0.51860981]
[1646658759850,1.60145582,84.612,84.555,0.26860981]
[1646658760052,1.60145582,84.624,84.556,118.6]
[1646658760251,1.60145582,84.624,84.558,118.6]
[1646658760450,1.60145582,84.628,84.56,118.6]
[1646658760652,1.60145582,84.633,84.561,6.25]
[1646658760852,5.91,84.632,84.581,35.18011824]
[1646658761052,5.909,84.64,84.582,6.25]
[1646658761251,7.51045582,84.64,84.582,6.25]
[1646658761651,5.909,84.64,84.582,6.25]
[1646658761854,24.1167,84.641,84.582,6.25]
[1646658762252,5.909,84.648,84.59,17.7337]
[1646658762453,5.908,84.649,84.591,6.25]
[1646658762852,1.60145582,84.653,84.591,6.25]
[1646658763053,1.60145582,84.656,84.591,6.25]
[1646658763252,1.60145582,84.658,84.601,118.6]
[1646658763453,1.60145582,84.662,84.604,0.11734322]
[1646658763653,1.60145582,84.664,84.605,118.6]
[1646658763853,1.60145582,84.676,84.607,37.74923546]
[1646658764054,47.1889,84.678,84.607,37.74923546]
[1646658764055,5.907,84.675,84.608,6.25]
[1646658764357,17.7299,84.67,84.61,17.7291]
[1646658764554,5.907,84.669,84.611,6.25]
[1646658764757,5.907,84.677,84.611,6.25]
[1646658764956,0.25,84.676,84.611,6.25]
[1646658765154,5.907,84.675,84.611,0.25]
[1646658765354,0.25,84.674,84.62,17.7272]
[1646658765554,0.25,84.674,84.622,34.46377089]
[1646658765856,47.1889,84.678,84.623,6.25]
[1646658766354,47.1889,84.678,84.63,17.7252]
[1646658766566,1.60145582,84.688,84.631,6.25]
[1646658766755,1.60145582,84.696,84.631,6.25]
[1646658767062,17.5204,84.7,84.631,6.25]
[1646658767254,11.305,84.699,84.631,6.25]
[1646658767456,30.256,84.699,84.631,6.25]
[1646658767755,39.08144745,84.698,84.631,6.25]
[1646658767955,5.905,84.697,84.631,6.25]
[1646658768157,0.25,84.696,84.631,6.25]
[1646658768357,5.905,84.695,84.631,6.25]
[1646658768557,0.25,84.694,84.64,17.7232]
[1646658768757,0.25,84.696,84.641,0.25]
[1646658769357,0.25,84.696,84.642,0.5999]
[1646658769560,0.25,84.696,84.642,45.24187146]
[1646658769756,0.25,84.697,84.643,6.25]
[1646658770358,0.25,84.697,84.643,0.25]
[1646658770558,6.0,84.698,84.643,0.25]
[1646658770760,6.0,84.698,84.65,17.7219]
[1646658771058,6.0,84.698,84.651,0.25]
[1646658771460,6.0,84.698,84.652,0.5999]
[1646658773180,11.904,84.698,84.651,0.25]
[1646658773581,11.904,84.698,84.66,17.7203]
[1646658773782,11.904,84.698,84.661,0.25]
[1646658774282,22.7128,84.719,84.661,6.25]
[1646658774482,1.60145582,84.722,84.662,162.51982682]
[1646658774688,1.60145582,84.745,84.665,0.19496634]
[1646658774982,5.902,84.744,84.672,0.21044411]
[1646658775182,5.902,84.75,84.673,0.5997]
[1646658775581,7.50345582,84.763,84.671,6.8497]
[1646658775781,5.902,84.763,84.672,0.21044411]
[1646658775982,5.902,84.765,84.673,0.5997]
[1646658776184,6.0,84.764,84.675,0.21044411]
[1646658776382,5.902,84.763,84.681,118.6]
[1646658776682,5.901,84.772,84.691,118.6]
[1646658776883,5.901,84.772,84.693,118.8261672]
[1646658777083,51.72020502,84.772,84.695,0.2261672]
[1646658777285,5.901,84.772,84.695,0.4761672]
[1646658777683,45.9995,84.773,84.695,0.25]
[1646658777883,17.7109,84.77,84.695,0.25]
[1646658778383,50.02079011,84.769,84.695,0.25]
[1646658778582,50.02079011,84.769,84.691,0.25]
[1646658778982,0.25,84.768,84.691,0.25]
[1646658779183,5.901,84.767,84.691,0.25]
[1646658779382,17.7128,84.76,84.691,0.25]
[1646658779587,0.25,84.759,84.691,6.25]
[1646658780186,5.901,84.767,84.7,17.7095]
[1646658780384,5.9,84.772,84.701,6.25]
[1646658780585,5.9,84.772,84.702,118.71869762]
[1646658780787,5.9,84.785,84.705,0.13458612]
[1646658780986,5.9,84.799,84.707,0.13458612]
[1646658781188,48.3435,84.798,84.711,118.6]
[1646658781390,5.9,84.797,84.713,118.6]
[1646658781586,5.9,84.797,84.714,124.85]
[1646658781791,5.9,84.797,84.715,6.0]
[1646658781988,5.9,84.797,84.72,17.704]
[1646658782192,5.9,84.797,84.721,0.25]
[1646658782394,34.44426631,84.773,84.721,0.25]
[1646658782588,5.899,84.772,84.721,0.25]
[1646658782988,2.83613526,84.774,84.721,0.25]
[1646658783189,24.7228,84.787,84.721,8.3]
[1646658783389,0.25,84.786,84.721,14.3]
[1646658783592,24.7228,84.787,84.723,118.6]
[1646658783794,24.7228,84.787,84.724,124.85]
[1646658783993,5.899,84.797,84.724,124.85]
[1646658783994,5.899,84.797,84.731,118.6]
[1646658784295,126.42685323,84.852,84.733,118.6]
[1646658784296,5.898,84.822,84.733,118.6]
[1646658784490,1.60145582,84.838,84.736,0.16827739]
[1646658784692,5.897,84.851,84.75,17.15]
[1646658784693,1.60145582,84.844,84.75,17.15]
[1646658784895,1.60145582,84.847,84.751,29.8178]
[1646658785091,120.20145582,84.85,84.77,17.6921]
[1646658785290,5.894,84.849,84.771,6.25]
[1646658785489,1.60145582,84.848,84.771,6.25]
[1646658785691,39.23426049,84.846,84.772,38.51597305]
[1646658785889,39.23426049,84.846,84.773,6.25]
[1646658786092,136.2961,84.84,84.773,6.0]
[1646658786291,118.6,84.838,84.772,38.51597305]
[1646658786490,11.894,84.837,84.772,38.51597305]
[1646658786690,5.894,84.837,84.772,38.51597305]
[1646658786892,39.23426049,84.846,84.773,6.0]
[1646658787094,39.23426049,84.846,84.773,5.75]
[1646658787396,17.6957,84.84,84.773,5.75]
[1646658787591,5.894,84.839,84.774,0.25]
[1646658787993,121.43613526,84.838,84.751,24.0916]
[1646658788191,17.6982,84.83,84.74,17.15]
[1646658788394,149.4042,84.829,84.721,24.0916]
[1646658788591,118.6,84.827,84.732,6.0]
[1646658788791,118.6,84.825,84.722,6.0]
[1646658788992,118.6,84.823,84.723,41.040145]
[1646658789192,0.25,84.822,84.724,6.0]
[1646658789391,118.6,84.82,84.724,6.0]
[1646658789592,45.95067504,84.799,84.724,6.0]
[1646658789791,0.25,84.798,84.724,6.0]
[1646658789995,45.95067504,84.799,84.724,6.0]
[1646658790393,5.898,84.808,84.724,124.6]
[1646658790595,24.4384,84.809,84.731,118.6]
[1646658790794,24.4384,84.809,84.741,118.6]
[1646658790993,24.4384,84.809,84.743,118.6]
[1646658791197,24.4384,84.809,84.745,118.6]
[1646658791395,1.60145582,84.843,84.747,118.6]
[1646658791594,24.7281,84.847,84.749,118.6]
[1646658791795,24.7281,84.847,84.751,118.6]
[1646658791995,5.896,84.846,84.753,118.6]
[1646658792194,5.896,84.846,84.755,118.6]
[1646658792397,5.896,84.846,84.757,118.6]
[1646658792597,5.896,84.846,84.756,6.25]
[1646658792598,5.896,84.846,84.761,118.6]
[1646658792796,5.896,84.846,84.76,39.0382629]
[1646658792797,17.6956,84.84,84.762,6.25]
[1646658792995,17.6956,84.84,84.763,118.6]
[1646658793200,17.6956,84.84,84.764,6.25]
[1646658793397,5.896,84.846,84.764,6.25]
[1646658793596,24.7281,84.847,84.77,17.15]
[1646658793798,24.7281,84.847,84.772,118.6]
[1646658793996,62.91474176,84.847,84.774,118.6]
[1646658794196,62.91474176,84.847,84.775,6.25]
[1646658794398,24.7281,84.847,84.775,6.25]
[1646658794797,24.7281,84.847,84.776,6.0]
[1646658794998,24.7281,84.847,84.777,0.25]
[1646658795200,24.7281,84.847,84.775,0.25]
[1646658795398,69.1499176,84.847,84.775,0.25]
[1646658795598,5.894,84.846,84.775,0.25]
[1646658795997,0.25,84.845,84.775,0.25]
[1646658796200,5.894,84.844,84.775,0.25]
[1646658796499,118.6,84.839,84.69,59.0153]
[1646658796698,6.146,84.838,84.72,17.15]